bitfinex/quotes_SOLUSD_20250422
["timestamp","ask_amount","ask_price","bid_price","bid_amount"]
[1745284190266,13.49475753,137.58,137.56,0.063]
[1745284190455,13.49475753,137.57,137.56,0.063]
[1745284190759,7.2695551,137.56,137.54,0.063]
[1745284190960,13.49475753,137.55,137.54,0.063]
[1745284192760,20.76484113,137.55,137.54,0.063]
[1745284192963,20.76484113,137.55,137.54,1e-08]
[1745284194269,7.2700836,137.55,137.54,1e-08]
[1745284196049,81.8,137.61,137.55,1.5445]
[1745284196269,7.26638569,137.62,137.59,13.49475753]
[1745284196674,7.26638569,137.62,137.6,13.49475753]
[1745284196860,7.26638569,137.62,137.55,1.5445]
[1745284196861,7.26585773,137.63,137.59,13.49475753]
[1745284197256,7.26554639,137.64,137.6,13.49475753]
[1745284197983,7.26554639,137.64,137.57,0.14216157]
[1745284198174,20.76030392,137.64,137.56,26.0]
[1745284198491,20.76030392,137.64,137.59,13.49475753]
[1745284198770,20.76030392,137.64,137.56,26.0]
[1745284199071,20.76030392,137.64,137.58,13.49475753]
[1745284199272,7.26638569,137.62,137.58,13.49475753]
[1745284202073,7.26638569,137.62,137.59,13.49475753]
[1745284202377,7.26598473,137.63,137.59,13.49475753]
[1745284202972,20.76074226,137.63,137.59,13.49475753]
[1745284203678,13.49475753,137.62,137.56,26.0]
[1745284203891,13.49475753,137.61,137.55,1.5445]
[1745284204055,7.26598473,137.63,137.57,13.49475753]
[1745284204367,7.26598473,137.63,137.59,13.49475753]
[1745284205888,13.49475753,137.6,137.56,13.49475753]
[1745284206257,13.49475753,137.6,137.54,1e-08]
[1745284206258,13.49475753,137.57,137.54,1e-08]
[1745284206465,13.49475753,137.55,137.54,1e-08]
[1745284206684,81.8,137.59,137.54,1e-08]
[1745284206999,13.49475753,137.55,137.54,1e-08]
[1745284207778,20.76484113,137.55,137.54,1e-08]
[1745284208258,7.2700836,137.55,137.54,1e-08]
[1745284209364,7.26942075,137.57,137.54,1e-08]
[1745284209688,20.76417828,137.57,137.54,1e-08]
[1745284210683,13.49475753,137.56,137.54,1e-08]
[1745284211058,13.49475753,137.55,137.54,1e-08]
[1745284211285,20.76484113,137.55,137.54,1e-08]
[1745284212885,7.2700836,137.55,137.54,1e-08]
[1745284213584,20.76484113,137.55,137.54,1e-08]
[1745284215071,57.43448999,137.55,137.54,1e-08]
[1745284215660,20.0,137.53,137.49,0.063]
[1745284216171,13.49475753,137.53,137.49,0.063]
[1745284216368,7.2700836,137.55,137.51,13.49475753]
[1745284216568,7.2700836,137.55,137.52,13.49475753]
[1745284217589,7.2695551,137.56,137.52,13.49475753]
[1745284218097,20.76431263,137.56,137.51,13.49475753]
[1745284218388,13.49475753,137.55,137.51,13.49475753]
[1745284218570,7.2695551,137.56,137.51,13.49475753]
[1745284218777,13.49475753,137.55,137.5,15.10345753]
[1745284219180,7.27061218,137.54,137.5,15.10345753]
[1745284219379,7.27061218,137.54,137.49,0.063]
[1745284219380,13.49475753,137.51,137.49,0.063]
[1745284219688,13.49475753,137.5,137.49,0.063]
[1745284223514,20.7674848,137.5,137.49,0.063]
[1745284225882,7.27272727,137.5,137.49,0.063]
[1745284226206,20.7674848,137.5,137.49,0.063]
[1745284227406,7.27272727,137.5,137.49,0.063]
[1745284227583,20.7674848,137.5,137.49,0.063]
[1745284227917,20.76677707,137.52,137.49,0.063]
[1745284228482,13.49475753,137.51,137.49,0.063]
[1745284228681,7.27201954,137.52,137.49,0.063]
[1745284228979,20.76677707,137.52,137.49,0.063]
[1745284229605,13.49475753,137.51,137.49,0.063]
[1745284229823,13.49475753,137.5,137.49,0.063]
[1745284230110,25.45119347,137.52,137.49,0.063]
[1745284230424,20.76677707,137.52,137.49,0.063]
[1745284230584,25.25151446,137.53,137.49,13.55775753]
[1745284230791,7.2695551,137.56,137.49,21.58835753]
[1745284230986,13.49475753,137.55,137.5,13.49475753]
[1745284231412,7.27061218,137.54,137.49,21.58835753]
[1745284231617,7.27061218,137.54,137.5,13.49475753]
[1745284234001,7.26797005,137.59,137.53,13.49475753]
[1745284234192,7.26797005,137.59,137.56,13.49475753]
[1745284235090,7.26797005,137.59,137.55,13.49475753]
[1745284235317,18.01,137.61,137.57,13.49475753]
[1745284235491,7.29713269,137.61,137.55,6.4813]
[1745284235697,7.29713269,137.61,137.58,13.49475753]
[1745284236412,7.29713269,137.61,137.55,6.4813]
[1745284236589,7.29713269,137.61,137.58,13.49475753]
[1745284237009,0.03,137.61,137.58,26.0]
[1745284237289,0.03,137.61,137.59,13.49475753]
[1745284237488,0.03,137.61,137.57,13.49475753]
[1745284238003,13.52475753,137.61,137.56,15.04405753]
[1745284238205,13.52475753,137.61,137.56,1.5493]
[1745284238419,13.49475753,137.59,137.56,1.5493]
[1745284238719,13.49475753,137.6,137.56,1.5493]
[1745284239715,20.76271518,137.6,137.56,1.5493]
[1745284240029,0.03,137.61,137.6,26.0]
[1745284240202,0.03,137.61,137.6,61.21161506]
[1745284243425,0.03,137.61,137.6,77.42228474]
[1745284243611,0.03,137.67,137.6,77.42228474]
[1745284243817,0.03,137.67,137.65,21.60009237]
[1745284246126,0.03,137.67,137.66,21.60009237]
[1745284246298,0.03,137.67,137.65,21.60009237]
[1745284247106,0.03,137.67,137.66,21.60009237]
[1745284247313,0.03,137.67,137.65,21.60009237]
[1745284247513,0.03,137.67,137.64,21.60009237]
[1745284247716,0.03,137.67,137.65,21.60009237]
[1745284248569,21.60009237,137.66,137.61,47.60009237]
[1745284248714,21.60009237,137.66,137.6,8.2221]
[1745284249029,21.60009237,137.63,137.58,21.60009237]
[1745284249708,0.03,137.67,137.57,39.70359352]
[1745284249709,21.60009237,137.61,137.57,39.70359352]
[1745284249916,21.60009237,137.59,137.57,9.88140115]
[1745284250208,28.86849496,137.59,137.54,1.5774]
[1745284250413,21.60009237,137.58,137.54,1.5774]
[1745284250721,28.86849496,137.59,137.54,23.17749237]
[1745284250917,7.26840259,137.59,137.55,21.60009237]
[1745284252107,7.26532984,137.64,137.58,21.60009237]
[1745284252308,21.60009237,137.64,137.6,21.60009237]
[1745284252513,7.26480203,137.65,137.6,21.60009237]
[1745284252717,21.60009237,137.62,137.57,21.60009237]
[1745284253021,21.60009237,137.61,137.56,21.60009237]
[1745284253430,21.60009237,137.62,137.56,21.60009237]
[1745284253615,21.60009237,137.62,137.57,21.60009237]
[1745284254410,7.26691374,137.61,137.57,21.60009237]
[1745284255223,7.26691374,137.61,137.58,21.60009237]
[1745284256023,7.26638569,137.62,137.58,21.60009237]
[1745284256734,28.86647806,137.62,137.54,27.6404]
[1745284256919,7.26638569,137.62,137.58,21.60009237]
[1745284258430,28.86647806,137.62,137.57,21.60009237]
[1745284259011,7.26638569,137.62,137.57,21.60009237]
[1745284259305,28.86647806,137.62,137.57,21.60009237]
[1745284260233,7.26638569,137.62,137.58,21.60009237]
[1745284262416,28.86647806,137.62,137.57,21.60009237]
[1745284262616,21.60009237,137.6,137.55,21.60009237]
[1745284263329,20.78574187,137.59,137.54,15.15817182]
[1745284263525,13.51777182,137.56,137.54,0.063]
[1745284264726,13.51777182,137.57,137.54,0.063]
[1745284265039,13.51777182,137.55,137.54,0.063]
[1745284265225,13.51777182,137.56,137.54,0.063]
[1745284265424,7.2700836,137.55,137.54,0.063]
[1745284267641,7.26975047,137.56,137.54,0.063]
[1745284268643,13.51777182,137.55,137.54,0.063]
[1745284269544,7.26975047,137.56,137.54,0.063]
[1745284270630,89.06924554,137.57,137.54,0.063]
[1745284270823,81.8,137.57,137.54,13.58077182]
[1745284271055,39.4581,137.6,137.55,13.51777182]
[1745284271056,17.94,137.6,137.55,13.51777182]
[1745284271346,20.78544637,137.6,137.55,13.51777182]
[1745284272040,20.78544637,137.6,137.54,0.063]
[1745284272041,13.51777182,137.59,137.54,0.063]
[1745284272450,13.51777182,137.57,137.54,0.063]
[1745284272657,81.8,137.59,137.55,13.51777182]
[1745284272869,7.26638569,137.62,137.58,13.51777182]
[1745284273029,7.26480203,137.65,137.61,13.51777182]
[1745284273226,7.26480203,137.65,137.62,13.51777182]
[1745284274153,81.8,137.66,137.63,13.51777182]
[1745284274330,7.29382129,137.67,137.64,13.51777182]
[1745284274531,0.03,137.67,137.66,13.51777182]
[1745284275344,0.03,137.67,137.66,21.58849332]
[1745284276822,21.61849332,137.72,137.66,21.58849332]
[1745284277018,21.61849332,137.72,137.67,21.58849332]
[1745284277222,0.03,137.72,137.67,21.58849332]
[1745284277423,0.03,137.72,137.69,21.58849332]
[1745284277855,0.03,137.72,137.68,21.58849332]
[1745284278031,28.87976164,137.72,137.66,21.58849332]
[1745284278230,21.58849332,137.7,137.64,27.6262]
[1745284278451,45.44404206,137.72,137.64,1.6262]
[1745284278633,21.58849332,137.69,137.64,23.21469332]
[1745284279523,21.58849332,137.7,137.65,21.58849332]
[1745284280538,7.26269155,137.69,137.65,21.21639332]
[1745284281552,7.26269155,137.69,137.66,21.58849332]
[1745284282957,7.26216412,137.7,137.64,1.6262]
[1745284283250,7.26216412,137.7,137.66,21.58849332]
[1745284284162,7.26216412,137.7,137.67,21.58849332]
[1745284284748,7.26216412,137.7,137.68,21.58849332]
[1745284284954,7.26163677,137.71,137.68,21.58849332]
[1745284285133,7.26163677,137.71,137.69,21.58849332]
[1745284285450,7.29111158,137.72,137.69,21.58849332]
[1745284286452,0.03,137.72,137.7,21.58849332]
[1745284287345,0.03,137.72,137.69,21.58849332]
[1745284288538,0.03,137.72,137.7,21.58849332]
[1745284288948,0.03,137.72,137.71,21.58849332]
[1745284292355,21.61849332,137.72,137.66,29.37049332]
[1745284292550,21.58849332,137.71,137.66,29.37049332]
[1745284292726,0.03,137.72,137.66,7.782]
[1745284292930,21.61849332,137.72,137.66,7.782]
[1745284293141,21.58849332,137.71,137.66,29.37049332]
[1745284293363,0.03,137.72,137.67,21.58849332]
[1745284293541,0.03,137.72,137.68,21.58849332]
[1745284293864,0.03,137.72,137.69,21.58849332]
[1745284294354,21.61849332,137.72,137.66,29.37049332]
[1745284294534,21.58849332,137.71,137.66,29.37049332]
[1745284295038,21.58849332,137.7,137.65,21.58849332]
[1745284295861,7.26269155,137.69,137.66,21.58849332]
[1745284296043,18.18397141,137.72,137.68,21.58849332]
[1745284296668,7.26163677,137.71,137.69,21.58849332]
[1745284296839,0.03,137.72,137.64,0.14216157]
[1745284296840,0.03,137.72,137.7,21.58849332]
[1745284297035,0.03,137.72,137.71,21.58849332]
[1745284297249,7.29110949,137.72,137.71,21.58849332]
[1745284297535,0.03,137.72,137.71,21.58849332]
[1745284298537,0.03,137.72,137.7,21.58849332]
[1745284299257,0.03,137.72,137.69,7.782]
[1745284299456,0.03,137.72,137.71,21.58849332]
[1745284301764,0.03,137.72,137.71,28.22119332]
[1745284302646,0.03,137.72,137.71,29.85689332]
[1745284304241,0.03,137.72,137.71,29.99905489]
[1745284305270,0.03,137.72,137.71,21.88903834]
[1745284306376,0.03,137.73,137.72,18.79181043]
[1745284306671,0.03,137.73,137.72,32.2702872]
[1745284307049,0.03,137.73,137.72,58.2702872]
[1745284308464,0.03,137.78,137.72,182.492232]
[1745284308667,0.03,137.78,137.77,13.47847677]
[1745284310268,0.03,137.81,137.8,44.79181043]
[1745284310473,0.03,137.81,137.8,58.2702872]
[1745284310977,26.29051072,137.92,137.82,0.14216157]
[1745284311139,13.47847677,137.9,137.85,13.47847677]
[1745284311339,13.47847677,137.9,137.78,43.6]
[1745284311340,20.73029057,137.9,137.78,43.6]
[1745284311544,7.25268349,137.88,137.84,13.47847677]
[1745284312871,21.96168256,137.91,137.86,13.47847677]
[1745284313172,1.2318938,137.91,137.89,13.47847677]
[1745284313459,1.2318938,137.91,137.88,13.47847677]
[1745284313666,8.48316458,137.91,137.87,13.47847677]
[1745284313965,21.96164135,137.91,137.85,13.47847677]
[1745284314155,8.48316458,137.91,137.81,43.82]
[1745284314350,8.48316458,137.91,137.85,13.47847677]
[1745284314564,13.47847677,137.9,137.85,13.47847677]
[1745284314768,8.48316458,137.91,137.86,13.47847677]
[1745284315546,1.2318938,137.91,137.86,26.0]
[1745284315875,1.2318938,137.91,137.9,13.47847677]
[1745284316567,1.2318938,137.91,137.87,0.14216157]
[1745284316870,1.2318938,137.91,137.9,13.47847677]
[1745284317461,1.2318938,137.91,137.9,21.51294024]
[1745284319073,1.2318938,137.91,137.89,21.51294024]
[1745284319765,8.48315982,137.91,137.89,21.51294024]
[1745284319948,8.48315982,137.91,137.8,53.12376422]
[1745284319949,21.51294024,137.9,137.83,11.41191005]
[1745284320155,26.6109243,137.91,137.84,21.51294024]
[1745284320349,29.99610006,137.91,137.86,21.51294024]
[1745284320677,1.2318938,137.91,137.89,21.51294024]
[1745284320846,8.48302346,137.91,137.88,21.51294024]
[1745284321171,8.48302346,137.91,137.87,21.51294024]
[1745284321368,1.2318938,137.91,137.89,21.51294024]
[1745284321880,1.2318938,137.91,137.9,21.51294024]
[1745284322250,8.48300962,137.91,137.88,21.51294024]
[1745284322749,48.12371434,137.91,137.86,21.51294024]
[1745284322952,48.12371434,137.91,137.85,21.51294024]
[1745284323159,8.48300962,137.91,137.83,16.00781005]
[1745284323355,8.48300962,137.91,137.87,21.51294024]
[1745284323868,8.48300962,137.91,137.86,21.51294024]
[1745284324176,8.48300962,137.91,137.88,21.51294024]
[1745284324657,8.48300962,137.91,137.84,21.51294024]
[1745284324658,1.2318938,137.91,137.85,0.14216157]
[1745284324858,1.2318938,137.91,137.9,21.51294024]
[1745284325182,1.2318938,137.91,137.88,21.51294024]
[1745284325847,1.2318938,137.91,137.9,21.51294024]
[1745284326752,1.2318938,137.91,137.85,27.5496]
[1745284326955,1.2318938,137.91,137.89,21.51294024]
[1745284327178,1.2318938,137.91,137.88,21.51294024]
[1745284327483,1.2318938,137.91,137.89,21.51294024]
[1745284328163,8.48300589,137.91,137.89,21.51294024]
[1745284328958,1.2318938,137.91,137.9,21.51294024]
[1745284333882,1.2318938,137.91,137.9,47.51294024]
[1745284334060,1.2318938,137.91,137.9,47.65510181]
[1745284334261,1.2318938,137.91,137.9,47.51294024]
[1745284334660,1.2318938,137.91,137.9,47.65510181]
[1745284334874,0.03,137.94,137.9,65.25510181]
[1745284335081,21.51294024,138.05,137.95,26.0]
[1745284335585,21.51294024,138.04,137.99,21.51294024]
[1745284335775,20.0,138.06,137.95,26.0]
[1745284335972,7.27540582,138.02,137.97,21.51294024]
[1745284336286,28.78834606,138.02,137.96,21.51294024]
[1745284336779,7.27540582,138.02,137.97,21.51294024]
[1745284337257,21.51294024,138.01,137.92,65.31294024]
[1745284337456,21.51294024,138.01,137.86,137.1]
[1745284337457,21.51294024,137.97,137.87,7.7402]
[1745284337680,17.8,137.99,137.91,21.51294024]
[1745284337889,17.8,137.99,137.92,21.51294024]
[1745284338181,28.76089269,137.97,137.92,21.51294024]
[1745284338482,28.76089269,137.97,137.91,21.51294024]
[1745284338683,21.51294024,137.96,137.91,21.51294024]
[1745284338864,21.51294024,137.95,137.87,7.7402]
[1745284339374,21.51294024,137.95,137.9,21.51294024]
[1745284339571,21.51294024,137.96,137.91,21.51294024]
[1745284339765,7.27795245,137.97,137.92,21.51294024]
[1745284339980,0.03,137.97,137.95,21.51294024]
[1745284340164,0.03,137.97,137.96,21.51294024]
[1745284340559,0.03,137.97,137.92,21.51294024]
[1745284340761,0.03,137.97,137.96,21.51294024]
[1745284341270,0.03,137.97,137.96,108.29978504]
[1745284342274,0.03,137.97,137.96,27.67784024]
[1745284342578,0.03,137.97,137.96,21.51294024]
[1745284344067,0.03,137.97,137.96,21.65510181]
[1745284344279,0.03,138.02,138.01,21.51294024]
[1745284345274,0.03,138.02,137.96,98.52410637]
[1745284345275,0.03,138.02,138.0,21.51294024]
[1745284345481,0.03,138.02,137.98,21.51294024]
[1745284345874,0.03,138.02,137.99,21.51294024]
[1745284346168,21.54294024,138.02,137.97,21.51294024]
[1745284346374,7.24585174,138.01,137.97,21.51294024]
[1745284346666,7.24585174,138.01,137.98,21.51294024]
[1745284347176,7.24585174,138.01,137.97,21.51294024]
[1745284347373,7.24585174,138.01,137.95,26.0]
[1745284347578,0.03,138.02,138.0,21.51294024]
[1745284347777,7.27532676,138.02,138.01,21.51294024]
[1745284348001,0.03,138.02,138.01,21.51294024]
[1745284348171,0.03,138.02,138.0,21.51294024]
[1745284349079,21.51294024,138.01,137.96,21.51294024]
[1745284349973,46.87525907,138.0,137.91,88.5242448]
[1745284350191,72.87525907,138.0,137.88,1.6015]
[1745284350372,21.51294024,137.95,137.9,21.51294024]
[1745284350571,45.36231883,138.0,137.92,21.51294024]
[1745284350799,21.51294024,137.99,137.94,21.51294024]
[1745284351291,21.51294024,137.99,137.93,21.51294024]
[1745284351595,25.36231883,138.0,137.94,21.51294024]
[1745284351770,21.51294024,137.99,137.94,21.51294024]
[1745284352594,25.36231883,138.0,137.94,21.51294024]
[1745284352799,17.79,138.02,137.95,34.04446157]
[1745284352800,0.03,138.02,137.95,34.04446157]
[1745284353085,0.03,138.02,138.0,21.51294024]
[1745284353475,7.27541381,138.02,137.98,21.51294024]
[1745284353678,21.51294024,138.0,137.95,21.51294024]
[1745284353887,21.51294024,137.97,137.9,17.76]
[1745284354072,21.51294024,137.97,137.91,21.51294024]
[1745284354381,21.51294024,137.97,137.92,21.51294024]
[1745284354782,7.24900326,137.95,137.91,21.51294024]
[1745284354976,7.24900326,137.95,137.9,21.51294024]
[1745284355181,28.7619435,137.95,137.88,6.3008]
[1745284355396,7.24900326,137.95,137.9,21.51294024]
[1745284355574,0.03,138.02,137.94,21.51294024]
[1745284355774,0.03,138.02,137.99,21.51294024]
[1745284356376,0.03,138.02,137.93,108.36560637]
[1745284356377,0.03,138.02,138.0,21.51294024]
[1745284356982,0.03,138.02,137.99,21.51294024]
[1745284357373,0.03,138.02,137.98,21.51294024]
[1745284357574,0.03,138.02,137.99,21.51294024]
[1745284358295,0.03,138.02,138.0,21.51294024]
[1745284358498,0.03,138.02,137.99,21.51294024]
[1745284358679,0.03,138.02,138.0,21.51294024]
[1745284359079,0.03,138.02,138.01,21.51294024]
[1745284359277,0.03,138.02,137.94,6.3008]
[1745284359491,0.03,138.02,138.0,21.51294024]
[1745284359694,0.03,138.02,138.01,21.51294024]
[1745284360290,0.03,138.02,137.97,8.1823]
[1745284360590,0.03,138.02,138.01,21.51294024]
[1745284360790,0.03,138.02,138.01,66.30475067]
[1745284361121,0.038,138.1,138.02,0.14216157]
[1745284361399,0.038,138.1,138.07,21.51294024]
[1745284362602,0.038,138.1,138.05,21.51294024]
[1745284362990,21.51294024,138.09,138.04,21.51294024]
[1745284363580,21.55094024,138.1,138.04,21.51294024]
[1745284364405,7.24165399,138.09,138.04,21.51294024]
[1745284364794,21.51294024,138.07,138.02,21.51294024]
[1745284364991,20.0,138.08,138.0,21.51294024]
[1745284365201,21.51294024,138.05,138.0,21.51294024]
[1745284366213,21.51294024,138.03,137.98,21.51294024]
[1745284366911,7.24532676,138.02,137.98,21.51294024]
[1745284367322,25.35864367,138.02,137.97,21.51294024]
[1745284367521,25.35864367,138.02,137.94,24.395]
[1745284367729,25.35864367,138.02,137.97,21.51294024]
[1745284367907,46.87158391,138.02,137.97,21.51294024]
[1745284368820,18.11331691,138.02,137.97,21.51294024]
[1745284368996,39.62625715,138.02,137.94,24.395]
[1745284369197,39.62625715,138.02,137.97,21.51294024]
[1745284369396,18.11331691,138.02,137.97,21.51294024]
[1745284369591,18.11331691,138.02,137.94,24.395]
[1745284369898,18.11331691,138.02,137.98,21.51294024]
[1745284370421,7.24480185,138.03,137.98,21.51294024]
[1745284371291,7.24480185,138.03,138.0,21.51294024]
[1745284372014,39.62309035,138.05,138.0,21.51294024]
[1745284372698,39.62309035,138.05,137.99,21.51294024]
[1745284373513,39.62309035,138.05,137.94,67.995]
[1745284373514,21.51294024,138.03,137.98,21.51294024]
[1745284373693,21.51294024,138.03,137.97,21.51294024]
[1745284374015,21.51294024,138.02,137.97,21.51294024]
[1745284375313,7.24375226,138.05,138.01,21.51294024]
[1745284375503,7.24375226,138.05,138.03,21.51294024]
[1745284375704,7.24375226,138.05,137.98,0.14216157]
[1745284376013,7.24375226,138.05,138.02,21.51294024]
[1745284376711,7.24375226,138.05,137.98,0.14216157]
[1745284377030,7.24270297,138.07,138.03,21.51294024]
[1745284377313,17.798,138.1,138.06,21.51294024]
[1745284377314,7.24165399,138.09,138.06,21.51294024]
[1745284378105,7.27926811,138.1,138.07,21.51294024]
[1745284378705,7.27926811,138.1,138.06,21.51294024]
[1745284379323,0.038,138.1,138.06,21.51294024]
[1745284380120,0.038,138.1,138.05,21.51294024]
[1745284380826,0.038,138.1,138.09,21.51294024]
[1745284381230,0.03,138.15,138.12,0.14216157]
[1745284381431,0.03,138.15,138.14,21.51294024]
[1745284381728,0.03,138.15,138.14,102.27704661]
[1745284382395,0.03,138.15,138.14,102.13488504]
[1745284382595,0.03,138.15,138.14,102.27704661]
[1745284383198,1.2318938,138.19,138.15,0.14216157]
[1745284383424,1.2318938,138.19,138.18,21.51294024]
[1745284384293,1.2318938,138.19,138.18,108.36844661]
[1745284384797,7.23338642,138.25,138.18,108.36844661]
[1745284384997,7.23338642,138.25,138.23,21.51294024]
[1745284385217,7.23274989,138.26,138.19,0.14216157]
[1745284385531,7.23170378,138.28,138.23,21.51294024]
[1745284385723,21.51294024,138.26,138.21,21.51294024]
[1745284385902,21.51294024,138.24,138.18,6.0914]
[1745284386213,21.51294024,138.24,138.18,21.51294024]
[1745284386397,21.51294024,138.21,138.15,86.7133448]
[1745284386597,21.51294024,138.21,138.15,27.60434024]
[1745284386812,21.51294024,138.19,138.14,21.51294024]
[1745284387031,21.51294024,138.2,138.15,21.51294024]
[1745284387523,7.23641363,138.19,138.15,21.51294024]
[1745284387721,25.32744771,138.19,138.11,96.55511269]
[1745284387920,46.84038795,138.19,138.14,21.51294024]
[1745284388116,21.51294024,138.17,138.11,15.93316789]
[1745284388318,21.51294024,138.15,138.11,9.84176789]
[1745284388512,21.51294024,138.15,138.1,21.51294024]
[1745284389030,21.51294024,138.16,138.07,6.3087]
[1745284389330,31.7013155,138.15,138.09,31.7013155]
[1745284389532,7.23903286,138.14,138.1,31.7013155]
[1745284389698,7.23903286,138.14,138.12,31.7013155]
[1745284389895,7.23903286,138.14,138.13,31.7013155]
[1745284390118,7.23903286,138.14,138.09,0.14216157]
[1745284390326,7.23746109,138.17,138.13,31.7013155]
[1745284390920,7.23746109,138.17,138.15,31.7013155]
[1745284391102,7.23641363,138.19,138.15,31.7013155]
[1745284391303,7.23641363,138.19,138.16,31.7013155]
[1745284391625,7.23641363,138.19,138.15,31.7013155]
[1745284391807,57.02876321,138.19,138.1,80.6219448]
[1745284392008,57.02876321,138.19,138.14,31.7013155]
[1745284392315,25.32744771,138.19,138.15,31.7013155]
[1745284392709,25.32744771,138.19,138.14,31.7013155]
[1745284393031,25.32744771,138.19,138.15,31.7013155]
[1745284394031,25.32744771,138.19,138.1,80.76410637]
[1745284394231,57.02876321,138.19,138.13,31.7013155]
[1745284394436,31.7013155,138.17,138.11,31.7013155]
[1745284394636,31.7013155,138.18,138.13,31.7013155]
[1745284394946,57.02876321,138.19,138.14,31.7013155]
[1745284395115,57.02876321,138.19,138.13,31.7013155]
[1745284395319,31.7013155,138.18,138.13,31.7013155]
[1745284395634,25.32744771,138.19,138.14,31.7013155]
[1745284395937,7.23641363,138.19,138.16,31.7013155]
[1745284397026,7.23641363,138.19,138.17,31.7013155]
[1745284397711,7.23536647,138.21,138.17,31.7013155]
[1745284398311,7.23379629,138.24,138.2,31.7013155]
[1745284398515,7.23379629,138.24,138.17,0.14216157]
[1745284398729,7.23379629,138.24,138.21,31.7013155]
[1745284399120,7.23379629,138.24,138.2,31.7013155]
[1745284399329,7.23379629,138.24,138.19,31.7013155]
[1745284399719,7.23379629,138.24,138.2,31.7013155]
[1745284400138,25.31828703,138.24,138.19,31.7013155]
[1745284400632,31.7013155,138.23,138.16,80.6219448]
[1745284400837,31.7013155,138.23,138.15,6.0399]
[1745284400838,31.7013155,138.23,138.17,31.7013155]
[1745284401246,31.7013155,138.2,138.14,31.7013155]
[1745284401547,31.7013155,138.19,138.14,31.7013155]
[1745284401840,7.23693732,138.18,138.14,31.7013155]
[1745284403237,7.23693732,138.18,138.15,31.7013155]
[1745284403752,57.02876321,138.19,138.12,7.5476]
[1745284404113,25.32744771,138.19,138.12,6.0399]
[1745284404349,25.32744771,138.19,138.13,31.7013155]
[1745284404350,31.7013155,138.18,138.13,31.7013155]
[1745284404730,31.7013155,138.18,138.12,37.7412155]
[1745284405121,25.32744771,138.19,138.14,31.7013155]
[1745284405343,7.23641363,138.19,138.15,31.7013155]
[1745284405542,7.23641363,138.19,138.12,6.0399]
[1745284405740,7.23641363,138.19,138.15,31.7013155]
[1745284405943,7.23589001,138.2,138.17,31.7013155]
[1745284406444,7.23589001,138.2,138.12,6.0399]
[1745284406746,7.23589001,138.2,138.17,31.7013155]
[1745284407048,7.23536647,138.21,138.17,31.7013155]
[1745284408446,18.08815847,138.22,138.17,31.7013155]
[1745284408647,38.93563511,138.23,138.17,31.7013155]
[1745284408943,7.23431961,138.23,138.2,31.7013155]
[1745284409126,17.68,138.25,138.22,31.7013155]
[1745284409332,7.23274989,138.26,138.23,21.41734053]
[1745284409543,7.23274989,138.26,138.22,21.41734053]
[1745284409746,7.23274989,138.26,138.21,21.41734053]
[1745284409951,46.73196514,138.26,138.19,6.4663]
[1745284410139,21.41734053,138.25,138.2,21.41734053]
[1745284410545,7.23379629,138.24,138.2,21.41734053]
[1745284410755,7.23379629,138.24,138.21,21.41734053]
[1745284412553,46.0,138.21,138.11,6.4663]
[1745284412755,21.41734053,138.16,138.1,23.01084053]
[1745284412922,26.0,138.21,138.08,6.5293]
[1745284412923,21.41734053,138.14,138.08,6.5293]
[1745284413324,21.41734053,138.14,138.08,27.94664053]
[1745284413540,21.41734053,138.14,138.09,21.41734053]
[1745284413749,21.41734053,138.14,138.08,27.94664053]
[1745284413956,21.41734053,138.12,138.08,0.063]
[1745284414129,21.5275,138.15,138.08,0.063]
[1745284414327,21.41734053,138.13,138.08,0.063]
[1745284414553,46.75395555,138.14,138.08,21.48034053]
[1745284414753,21.41734053,138.13,138.08,0.063]
[1745284416054,21.41734053,138.12,138.08,0.063]
[1745284416646,7.24060531,138.11,138.08,0.063]
[1745284417154,46.75945912,138.11,138.08,0.063]
[1745284417353,21.41734053,138.1,138.08,0.063]
[1745284417543,21.41734053,138.09,138.08,0.063]
[1745284417853,43.02211859,138.11,138.08,0.063]
[1745284418066,21.41734053,138.09,138.08,0.063]
[1745284418732,28.65899452,138.09,138.08,0.063]
[1745284422462,28.65899452,138.09,138.08,1e-08]
[1745284424844,48.65899452,138.09,138.08,1e-08]
[1745284425047,74.65899452,138.09,138.08,1e-08]
[1745284425246,20.0,138.05,138.0,0.063]
[1745284425454,21.41734053,138.02,138.0,0.063]
[1745284425837,21.41734053,138.01,138.0,0.063]
[1745284426767,28.66319227,138.01,138.0,0.063]